Cogmind - Beta 17 @@@ ROGUE MODE // 2026.06.30 @ 20:14:09 Player: Iris Result: Destroyed by IA-O7E(R) with Subdweller Laser Performance ------------- Evolutions (0) 0 Regions Visited (3) 600 Robots Destroyed (7) 35 Value Destroyed (131) 131 Prototype IDs (0) 0 Alien Tech Used (0) 0 Bonus (0) 0 TOTAL SCORE: 766 Bonus ------- None Cogmind --------- Core Integrity 0/250 Matter 300/300 Energy 100/100 System Corruption 0% Temperature Cool (6) Movement Core (100) Ox1 Location -10/Subcaves Parts ------- > --- POWER (1) -------- (None) > --- PROPULSION (2) --- (None) > --- UTILITY (2) ------ Small Storage Unit Targeting Computer > --- WEAPON (2) ------- (None) > --- INVENTORY (8) ---- Light Ion Engine Light Ion Engine Aluminum Leg Wheel Compact Wheel Small Laser Assault Rifle Grenade Launcher Peak State ------------ > --- POWER ------------ Light Nuclear Core > --- PROPULSION ------- Aluminum Leg Aluminum Leg > --- UTILITY ---------- Small Storage Unit Targeting Computer > --- WEAPON ----------- Assault Rifle Assault Rifle > --- INVENTORY -------- Light Ion Engine Light Ion Engine Aluminum Leg Wheel Compact Wheel Small Laser Grenade Launcher Mining Laser [Rating: 9] Favorites ----------- Power Light Ion Engine Engine Light Ion Engine Power Core Light Nuclear Core Propulsion Aluminum Leg Leg Aluminum Leg Utility Small Storage Unit Storage Small Storage Unit Processor Targeting Computer Weapon Assault Rifle Ballistic Gun Assault Rifle Special Weapon Mining Laser Build | -11 -10 -10 -10 ------- Run | Yrd Mat Min Sub Slots Evolved . | . . . . Power . | . . . . Propulsion . | . . . . Utility . | . . . . Weapon . | . . . . Parts Attached 10 | 6 2 2 . Power 2 | 1 . 1 . Engine 1 | 1 . . . Core 1 | . . 1 . Reactor . | . . . . Propulsion 3 | 2 . 1 . Treads . | . . . . Leg 3 | 2 . 1 . Wheel . | . . . . Hover . | . . . . Flight . | . . . . Utility 2 | 1 1 . . Device . | . . . . Storage 1 | 1 . . . Processor 1 | . 1 . . Hackware . | . . . . Protection . | . . . . Artifact . | . . . . Weapon 3 | 2 1 . . Energy Gun . | . . . . Energy Cannon . | . . . . Ballistic Gun 2 | 2 . . . Ballistic Cannon . | . . . . Launcher . | . . . . Special Weapon 1 | . 1 . . Impact Weapon . | . . . . Slashing Weapon . | . . . . Piercing Weapon . | . . . . Special Melee Weapon . | . . . . Unidentified Prototypes . | . . . . Parts Lost 5 | . . . 5 Power 1 | . . . 1 Propulsion 2 | . . . 2 Utility . | . . . . Weapon 2 | . . . 2 Highest Loss Streak 5 | . . . 5 To Critical Strikes . | . . . . Average Backups 6 | 1 5 7 8 Power 1 | . 1 1 2 Propulsion 2 | . 2 2 3 Utility . | . . . . Weapon 2 | . 2 3 3 Tool/Special . | . . . . Unused Backups 5 | . . . 5 Power 1 | . . . 1 Propulsion 2 | . . . 2 Utility . | . . . . Weapon 2 | . . . 2 Tool/Special . | . . . . Average Slot Usage (%) 96 | . 92 100 91 Engine 7 | . 14 6 . Core 6 | . . 8 14 Leg 27 | . 28 28 22 Storage 14 | . 14 14 14 Processor 11 | . 6 14 14 Ballistic Gun 25 | . 25 28 21 Special Weapon 1 | . 2 . 4 Peak Build Rating 9 | 6 7 9 9 Average Rating 7 | 4 6 8 8 On Entrance 5 | . 6 7 9 Avg Prop Armor Cover (%) . | . . . . Naked Turns . | . . . . Heaviest Build 14 | 12 12 14 14 Greatest Support 20 | 20 20 20 20 Greatest Overweight (x) 3 | 1 . . 3 Average Overweight (x) . | . . . . Largest Inventory Capacity 8 | 8 8 8 8 Average Capacity 7 | 6 8 8 8 Most Carried 8 | 4 6 8 8 Average Carried 6 | 2 5 7 8 Final Capacity 8 | 8 8 8 8 Final Carried 8 | 4 6 8 8 Class Distribution -------------------- 100% | Mutant Dominant Class ---------------- Mutant | -10/Materials Mutant | -10/Mines Mutant | -10/Subcaves Resources | -11 -10 -10 -10 ----------- Run | Yrd Mat Min Sub Matter Collected 396 | 187 127 82 . Remotely . | . . . . Salvage Created 167 | . 41 126 . Parts 10 | . 2 8 . Haulers Intercepted . | . . . . Recyclers Shooed . | . . . . Parts Field Recycled . | . . . . Retrieved Matter . | . . . . Parts Self-Destructed 1 | . . . 1 Prevented . | . . . . Parts Restored . | . . . . Kills | -11 -10 -10 -10 ------- Run | Yrd Mat Min Sub Combat Hostiles Destroyed 7 | . 3 4 . Guns 7 | . 3 4 . Classes Destroyed 2 | . 1 1 . Swarmer 5 | . 3 2 . Grunt 2 | . . 2 . Best Kill Streak 3 | . 3 2 . Combat Bots Only 3 | . 3 2 . Max Kills in Single Turn 2 | . 2 1 . Gunslinging . | . . . . Exploded . | . . . . Melee . | . . . . Uniques/NPCs Destroyed . | . . . . Combat | -11 -10 -10 -10 -------- Run | Yrd Mat Min Sub Hostile Shots Fired 67 | . 17 19 31 Missed 19 | . 5 6 8 Hits 48 | . 12 13 23 Projectile 48 | . 12 13 23 Damage Taken 787 | . 98 136 553 Core 262 | . 18 54 190 Absorbed by Shields . | . . . . Core Remaining (%) 100 | 100 . . . Volleys Fired 22 | . 7 12 3 Largest 2 | . 2 2 1 Hottest 100 | . 100 40 100 Shots Fired 38 | . 11 24 3 Gun 32 | . 8 24 . Cannon . | . . . . Launcher . | . . . . Special 6 | . 3 . 3 Kinetic 32 | . 8 24 . Thermal 6 | . 3 . 3 Explosive . | . . . . Electromagnetic . | . . . . Robot Hit Streak 7 | . 4 7 . Robot Miss Streak 3 | . 3 1 . Penetration Max . | . . . . Secondary Targets 1 | . . 1 . Max Gunslinging Chain 1 | . . 1 . Shots Hit Robots 23 | . 4 19 . Core Hits 10 | . 3 7 . Critical Kills . | . . . . Critical Parts Destroyed . | . . . . Critical Strikes . | . . . . Melee Attacks . | . . . . Impact . | . . . . Slashing . | . . . . Piercing . | . . . . Sneak Attacks . | . . . . Combat Hostiles . | . . . . Follow-up Attacks . | . . . . Damage Inflicted 296 | . 67 229 . Guns 296 | . 67 229 . Cannons . | . . . . Explosions . | . . . . Melee . | . . . . Ramming . | . . . . Kinetic 296 | . 67 229 . Thermal . | . . . . Explosive . | . . . . Electromagnetic . | . . . . Impact . | . . . . Slashing . | . . . . Piercing . | . . . . Highest Corruption . | . . . . Average Corruption . | . . . . Corruption Purged . | . . . . Corruption Blocked . | . . . . Overload Shots . | . . . . Overflow Damage . | . . . . Projectiles . | . . . . Explosions . | . . . . Melee . | . . . . Knockbacks . | . . . . Impact . | . . . . Kinetic . | . . . . Secondary . | . . . . Self-Inflicted Damage . | . . . . Shots . | . . . . Rammed . | . . . . Targets Rammed . | . . . . Kicked . | . . . . Crushed . | . . . . Highest Temperature 20 | . 20 2 2 Average Temperature 9 | . 10 2 2 Received Heat Transfer 231 | . . 54 177 Siege Activations . | . . . . Martial Activations . | . . . . Shielding Activations . | . . . . Robots Disrupted . | . . . . Combat Hostiles . | . . . . Robots Corrupted . | . . . . Combat Hostiles . | . . . . Parts Fried . | . . . . Impact Corruptions . | . . . . Robots Melted . | . . . . Combat Hostiles . | . . . . Parts Melted . | . . . . Heat Transferred . | . . . . Parts Sabotaged . | . . . . Parts Stolen . | . . . . Parts Stripped . | . . . . Power Chain Reactions . | . . . . Alert | -11 -10 -10 -10 ------- Run | Yrd Mat Min Sub Maximum Alert Level . | . . . . Low Security (%) 100 | 100 100 100 . Level 1 . | . . . . Level 2 . | . . . . Level 3 . | . . . . Level 4 . | . . . . Level 5 . | . . . . High Security . | . . . . Max Security . | . . . . Peak Influence 70 | . 70 69 . Initial 19 | . . 19 . Average 13 | . 9 18 . Influence Increases 173 | . 73 100 . Destroy 0b10 Robot/C 140 | . 60 80 . Destroy Leader 30 | . 10 20 . Destroy Structure 3 | . 3 . . Influence Decreases 173 | . 23 150 . Entered New Map 31 | . . 31 . Time Decay 142 | . 23 119 . Squads Dispatched 2 | . 2 . . Investigation . | . . . . Extermination . | . . . . Reinforcement 2 | . 2 . . Assault . | . . . . Garrison . | . . . . Intercept . | . . . . Searches Triggered . | . . . . Construction Impeded . | . . . . Haulers Reinforced . | . . . . Active Scanning Responses . | . . . . Cargo Convoy Interrupts . | . . . . Stealth | -11 -10 -10 -10 --------- Run | Yrd Mat Min Sub Distress Signals . | . . . . Communications Jammed . | . . . . Distress Signals . | . . . . Times Spotted 18 | . 11 5 2 Peak Tracking Total 5 | . 5 3 2 Tactical Retreats . | . . . . Traps | -11 -10 -10 -10 ------- Run | Yrd Mat Min Sub Traps Triggered . | . . . . Indirectly . | . . . . Trap Hack Attempts . | . . . . Triggered . | . . . . Disarmed . | . . . . Reprogrammed . | . . . . Reused . | . . . . Traps Extracted . | . . . . Installed . | . . . . Triggered . | . . . . Machines | -11 -10 -10 -10 ---------- Run | Yrd Mat Min Sub Machines Disabled . | . . . . Max in Single Turn . | . . . . Machines Repaired . | . . . . Machines Dismantled . | . . . . Machines Sabotaged . | . . . . Overloaded Fab Kills . | . . . . Hacking | -11 -10 -10 -10 --------- Run | Yrd Mat Min Sub Machines Accessed 1 | . 1 . . Terminals . | . . . . Fabricators . | . . . . Repair Stations . | . . . . Recycling Units 1 | . 1 . . Scanalyzers . | . . . . Garrison Access . | . . . . Total Hacks 4 | . 4 . . Successful 1 | . 1 . . Failed 3 | . 3 . . Catastrophic . | . . . . Database Lockouts . | . . . . Manual . | . . . . Terminals . | . . . . Fabricators . | . . . . Repair Stations . | . . . . Recycling Units 4 | . 4 . . Scanalyzers . | . . . . Garrison Access . | . . . . Terminal Hacks . | . . . . Fabricator Hacks . | . . . . Repair Station Hacks . | . . . . Recycling Unit Hacks 1 | . 1 . . Retrieve Components 1 | . 1 . . Scanalyzer . | . . . . Garrison Access Hacks . | . . . . Unauthorized Hacks . | . . . . Terminals . | . . . . Fabricators . | . . . . Repair Stations . | . . . . Recycling Units . | . . . . Scanalyzers . | . . . . Garrison Access . | . . . . Data Cores Recovered . | . . . . Used . | . . . . Hacking Detections 1 | . 1 . . Full Trace Events . | . . . . Feedback Events . | . . . . Feedback Blocked . | . . . . Robot Schematics Acquired . | . . . . Robots Built . | . . . . Authchips . | . . . . Time . | . . . . Total Robot Build Rating . | . . . . Part Schematics Acquired . | . . . . Parts Built . | . . . . Authchips . | . . . . Time . | . . . . Total Part Build Rating . | . . . . Part Studies Acquired . | . . . . Parts Repaired . | . . . . Time . | . . . . Parts Recycled . | . . . . Recycled Matter . | . . . . Retrieved Matter . | . . . . Retrieved Components . | . . . . Parts Scanalyzed . | . . . . Part Schematics Acquired . | . . . . Parts Damaged . | . . . . Bothacking | -11 -10 -10 -10 ------------ Run | Yrd Mat Min Sub Used RIF Installer . | . . . . Robots Hacked . | . . . . Non-combat . | . . . . Combat . | . . . . Robot Hacks Applied . | . . . . Relay Couplers Released . | . . . . Fabnet Peak Effective % . | . . . . Robots Rewired . | . . . . Allies Hacked . | . . . . Hacks Repelled . | . . . . Allies | -11 -10 -10 -10 -------- Run | Yrd Mat Min Sub Total Allies . | . . . . Largest Group . | . . . . Highest-Rated Group . | . . . . Highest-Rated Ally . | . . . . Total Orders . | . . . . Ally Attacks . | . . . . Total Damage . | . . . . Kills . | . . . . Allies Corrupted . | . . . . Allies Melted . | . . . . Intel | -11 -10 -10 -10 ------- Run | Yrd Mat Min Sub Active Infowar (turns) . | . . . . Robot Analysis Total . | . . . . Derelict Logs Recovered 3 | . . 3 . Drone Launches . | . . . . Drone Recoveries . | . . . . Exploration | -11 -10 -10 -10 ------------- Run | Yrd Mat Min Sub Turns Passed 876 | 70 287 405 114 Spaces Moved 604 | 54 173 305 72 Core 23 | 16 . . 7 Treads . | . . . . Legs 581 | 38 173 305 65 Wheels . | . . . . Hover . | . . . . Flight . | . . . . Fastest Speed 50 | 50 120 120 100 Average Speed 121 | 107 120 120 138 Slowest Speed 200 | 120 120 120 200 Overloaded Moves . | . . . . Propulsion Burnouts . | . . . . Robots Hopped . | . . . . Potential Cave-ins . | . . . . Cave-ins Triggered . | . . . . Exploration Rate (%) 27 | 3 29 67 10 Regions Visited 3 Branch Regions 2 Pre-discovered Areas . | . . . . Known Exits Taken . | . . . . Unknown Exits Taken 3 | 1 1 1 . Scrap Searched 1 | . . 1 . Spaces Dug 3 | . 3 . . Terrain Destroyed 3 | . 3 . . Melee . | . . . . Projectile 3 | . 3 . . AOE . | . . . . Terrain Rammed . | . . . . Walls Destroyed . | . . . . Machines Disabled . | . . . . Actions | -11 -10 -10 -10 --------- Run | Yrd Mat Min Sub Total 692 | 63 234 319 76 Wait 51 | . 50 1 . Move 601 | 53 172 304 72 Hop . | . . . . Pick Up 6 | 4 2 . . Fast Attach 7 | 6 1 . . Attach . | . . . . Detach . | . . . . Swap 5 | . 2 2 1 Drop . | . . . . Fire 22 | . 7 12 3 Melee . | . . . . Ram . | . . . . Kick . | . . . . Crush . | . . . . Escape Stasis . | . . . . Rewire . | . . . . Trap . | . . . . Miscellaneous . | . . . . Route ------- -11/Scrapyard -10/Materials -10/Mines (discovered 3 exits: *Mat x2 / [*Sub]) -10/Subcaves History --------- Turn | Location | Event 16 | -11/Scrapyard | Discovered new exit (range 15) 71 | -11/Scrapyard | Entered Materials 326 | -10/Materials | Build established: Mutant 346 | -10/Materials | Discovered new exit (range 11) 358 | -10/Materials | Entered Mines 403 | -10/Mines | Learned 2 Materials zone layouts 547 | -10/Mines | Discovered new exit (range 14) 569 | -10/Mines | Learned Materials emergency access door positions 743 | -10/Mines | Discovered new exit (range 13) 746 | -10/Mines | Identified exit to Materials 763 | -10/Mines | Entered Subcaves 804 | -10/Subcaves | A swath of the cavern ceiling suddenly collapsed 865 | -10/Subcaves | Core integrity fell below 50% 876 | -10/Subcaves | Core integrity fell below 20% 877 | -10/Subcaves | Destroyed by IA-O7E(R) with Subdweller Laser Last Messages --------------- 00569_ Acquired derelict log, extracted data. Data stored: Materials emergency access points. 00607_ A derelict is hurriedly installing traps. 00609_ 5K-M6G(g): "Hehe, this'll put a wrench in their mining defense operations..." 00609_ 5K-M6G(g) slips into the shadows. 00623_ K-01 Serf collects debris. 00743_ EXIT=FOUND 00746_ Acquired derelict log, extracted data. Loading 1 Mines exit... LOCATION=UNKNOWN AMBIENT_HEAT=-10 GOAL=ESCAPE A swath of the cavern ceiling suddenly collapses. 00837_ Aluminum Leg destroyed. 00852_ Mining Laser destroyed. 00864_ Aluminum Leg destroyed. 00871_ Assault Rifle destroyed. 00873_ Lgt. Nuclear Core destroyed. Map ----- +----------------------------------------------------+ | ??????????????????????????????????????????? ##??? | | ??????????????????????????????????????????? ##???? | | ?????????????????????????????????????????? ?????? | | ?????????????????????????????????????????? ?????? | | ?????????????????????????????????? ????? ?????? | | ?????????????????????????????????? ???? ?????? | | ?????????????????????????????????? ?? ?????? | | ?????????????????????????????????? ??####???? | | ?????????????????????????????????? #???# ??? | | ?????????????????????????????????? #???# ?? | | ?????????????????????????????????? ##### # ? | | ???????????????????????????????### ## #" # | | ???????????????????????????????# #" | | ???????????????????????????###? #" | | ??????????????????????????## ### ?????# # | | ?????????????????????????##; ## # ?????#####"# | | ?????????????????????????# #?????##"""#"" | | ???????????????????????### #?????# "#"# | | ????????????????#??##### #????### "" ### | | ?????????????? # # # ##??##"" ###""# | | ????????????? "" ##?#"""#####"" | | ?????????????? ####"##??#### | | ????????????????? ###### ###"#????## | | ??????????????????????## R "#?????## | | ?????????????????????## R #??????? | | ?????????????????????# @ ## ##??????? | | ?????????????????# ## #???????? | | ???????????????# #### ### #???????? | | ???????????? " ####??## #?# #??????? | | ??????????? ######??????#####?## #??????? | | ????????????##### #?????????????????????##??????? | | ????????????????##???????????????????????????????? | | ?????????????????????????????????????????????????? | | ?????????????????????????????????????????????????? | | ?????????????????????????????????????????????????? | | ?????????????????????????????????????????????????? | | ?????????????????????????????????????????????????? | | ?????????????????????????????????????????????????? | | ?????????????????????????????????????????????????? | | ?????????????????????????????????????????????????? | | ?????????????????????????????????????????????????? | | ?????????????????????????????????????????????????? | | ?????????????????????????????????????????????????? | | ?????????????????????????????????????????????????? | | ?????????????????????????????????????????????????? | | ?????????????????????????????????????????????????? | | | | | | | | | +----------------------------------------------------+ Best States ------------- Heat Dissipation 25 Energy Generation 14 Energy Capacity 160 Matter Stores 300 Matter Capacity 300 Sight Range 16 Terrain Scan Density 10 Evasion (%) 55 Targeting Accuracy 5 Item Schematics ----------------- None Robot Schematics ------------------ None Fabricated ------------ Nothing Repaired ---------- Nothing Studied --------- None Alien Tech Used ----------------- None Achievements -------------- None Challenges ------------ None Game ------ Seed PiercingWarpPrototype Manual? 0 Play Time 00:06:37 Cumulative 30.5 hours Start 2026.06.30 @ 20:08:22 End 2026.06.30 @ 20:14:09 Sessions 1 Manual Loads 0 Difficulty Rogue Special Mode None Game No. 68 Rogue 44 Adventurer 24 Explorer 0 Win Type - Total 0 Types 0/0/0/0/0/0/0/0/0/0 Lore% 13 Gallery% 28 Achievement% 18 Wizard Run 0 Options --------- Layout 1 ASCII 0 Keyboard 1 Movement Arrows Keybinds 0 Fullscreen 2 Font 24/Smallcaps Map View 25x20 Zoom Use 100% Tactical HUD 1 Map Filters NONE Filters SHIFT_HUE(60) Steam 1 RUN: 27cbc9b7-bd7b-4c17-9c99-7de51b6d00ab